[Event "Early-Titled-Tuesday-Blitz-January-23-2024"]
[Site "Chess.com"]
[Date "2024.01.23"]
[Round "9"]
[White "Rodalquilar"]
[Black "JimDiGrease"]
[Result "1-0"]
[WhiteElo "2746"]
[BlackElo "2941"]
[TimeControl "180+1"]
[EndTime "9:46:21 PST"]
[Termination "Rodalquilar won by resignation"]

1. d4 {[%clk 0:03:00.9]} 1... d5 {[%clk 0:03:00.1]} 2. Nf3 {[%clk 0:03:01.2]}
2... Nf6 {[%clk 0:03:00.3]} 3. Bf4 {[%clk 0:03:01.5]} 3... c5 {[%clk 0:03:00.4]}
4. e3 {[%clk 0:03:01.8]} 4... Nc6 {[%clk 0:03:01.2]} 5. c3 {[%clk 0:03:02.1]}
5... Qb6 {[%clk 0:03:01.5]} 6. Qc2 {[%clk 0:03:02.2]} 6... g6 {[%clk 0:03:01.7]}
7. h3 {[%clk 0:03:01.9]} 7... Bg7 {[%clk 0:03:00.5]} 8. Nbd2 {[%clk 0:03:01.9]}
8... O-O {[%clk 0:02:56.3]} 9. Be2 {[%clk 0:03:01.6]} 9... Nh5 {[%clk
0:02:52.8]} 10. Bh2 {[%clk 0:02:57.9]} 10... Rd8 {[%clk 0:02:16.6]} 11. O-O
{[%clk 0:02:53.2]} 11... cxd4 {[%clk 0:02:14]} 12. exd4 {[%clk 0:02:53.1]} 12...
Bh6 {[%clk 0:02:13.9]} 13. Rfe1 {[%clk 0:02:49.9]} 13... Nf4 {[%clk 0:02:09]}
14. Bf1 {[%clk 0:02:49.1]} 14... Bf5 {[%clk 0:02:09]} 15. Qb3 {[%clk 0:02:46.9]}
15... Nd3 {[%clk 0:02:07.2]} 16. Reb1 {[%clk 0:02:29.3]} 16... Nf4 {[%clk
0:01:37.6]} 17. Re1 {[%clk 0:02:28.9]} 17... Nd3 {[%clk 0:01:05.1]} 18. Reb1
{[%clk 0:02:28.6]} 18... Bf4 {[%clk 0:00:51.1]} 19. Qxb6 {[%clk 0:01:42.4]}
19... axb6 {[%clk 0:00:46.7]} 20. g4 {[%clk 0:00:46.5]} 20... Be4 {[%clk
0:00:22.9]} 21. Nxe4 {[%clk 0:00:47]} 21... dxe4 {[%clk 0:00:20.8]} 22. Bxd3
{[%clk 0:00:47.2]} 22... Bxh2+ {[%clk 0:00:20.5]} 23. Kxh2 {[%clk 0:00:48.1]}
23... exd3 {[%clk 0:00:18.4]} 24. Rd1 {[%clk 0:00:47.5]} 24... Na5 {[%clk
0:00:16.2]} 25. Ne5 {[%clk 0:00:36.8]} 25... b5 {[%clk 0:00:16.3]} 26. Nxd3
{[%clk 0:00:31.2]} 26... Nc4 {[%clk 0:00:16.7]} 27. a3 {[%clk 0:00:31.9]} 27...
e6 {[%clk 0:00:14]} 28. Re1 {[%clk 0:00:31.4]} 28... Kf8 {[%clk 0:00:11.1]} 29.
Re2 {[%clk 0:00:31.9]} 29... Rac8 {[%clk 0:00:09.2]} 30. Kg3 {[%clk 0:00:31.9]}
30... Nd6 {[%clk 0:00:09.8]} 31. g5 {[%clk 0:00:28.3]} 31... Kg7 {[%clk
0:00:09.7]} 32. Kf4 {[%clk 0:00:19.8]} 32... h6 {[%clk 0:00:09.6]} 33. gxh6+
{[%clk 0:00:17]} 33... Kxh6 {[%clk 0:00:10.5]} 34. Ne5 {[%clk 0:00:17.6]} 34...
Kg7 {[%clk 0:00:10.4]} 35. Nf3 {[%clk 0:00:14.2]} 35... Rh8 {[%clk 0:00:10.4]}
36. h4 {[%clk 0:00:14.6]} 36... Rc7 {[%clk 0:00:04.8]} 37. Rg1 {[%clk
0:00:14.4]} 37... Rh5 {[%clk 0:00:04.8]} 38. Re5 {[%clk 0:00:14.6]} 38... Rh8
{[%clk 0:00:03.7]} 39. h5 {[%clk 0:00:15]} 39... Rg8 {[%clk 0:00:02.8]} 40. hxg6
{[%clk 0:00:15.1]} 40... Kf8 {[%clk 0:00:03.2]} 41. Rc5 {[%clk 0:00:08.3]} 41...
Rd7 {[%clk 0:00:03.1]} 42. Ne5 {[%clk 0:00:07.9]} 42... Re7 {[%clk 0:00:03.6]}
43. Rg3 {[%clk 0:00:01.5]} 43... f6 {[%clk 0:00:04.2]} 44. Ng4 {[%clk
0:00:02.1]} 44... Kg7 {[%clk 0:00:04]} 45. Kf3 {[%clk 0:00:02.1]} 45... Nf5
{[%clk 0:00:04.2]} 46. Rxf5 {[%clk 0:00:01.9]} 46... exf5 {[%clk 0:00:04.5]} 47.
Ne3 {[%clk 0:00:02.8]} 47... Kf8 {[%clk 0:00:03.1]} 48. Nxf5 {[%clk 0:00:03.4]}
48... Re1 {[%clk 0:00:03.5]} 49. g7+ {[%clk 0:00:03.7]} 49... Ke8 {[%clk
0:00:02.4]} 50. Nh6 {[%clk 0:00:04.1]} 50... Rxg7 {[%clk 0:00:02.3]} 51. Rxg7
{[%clk 0:00:03.7]} 51... Rb1 {[%clk 0:00:03.1]} 52. Rxb7 {[%clk 0:00:04]} 52...
Rxb2 {[%clk 0:00:04]} 53. Ng4 {[%clk 0:00:04.5]} 53... Rb3 {[%clk 0:00:04.9]}
54. Nxf6+ {[%clk 0:00:05.1]} 1-0

[Event "Early-Titled-Tuesday-Blitz-January-23-2024"]
[Site "Chess.com"]
[Date "2024.01.23"]
[Round "9"]
[White "GoValya"]
[Black "sergeikim"]
[Result "0-1"]
[WhiteElo "2319"]
[BlackElo "2523"]
[TimeControl "180+1"]
[EndTime "9:46:21 PST"]
[Termination "sergeikim won by resignation"]

1. d4 {[%clk 0:03:00.9]} 1... Nf6 {[%clk 0:02:56]} 2. g3 {[%clk 0:03:00.8]} 2...
g6 {[%clk 0:02:55.9]} 3. Bg2 {[%clk 0:03:01.3]} 3... Bg7 {[%clk 0:02:56.2]} 4.
c4 {[%clk 0:03:01.8]} 4... d6 {[%clk 0:02:56.5]} 5. Nc3 {[%clk 0:03:02.3]} 5...
O-O {[%clk 0:02:56.5]} 6. e4 {[%clk 0:03:02.7]} 6... e5 {[%clk 0:02:54.3]} 7.
Nf3 {[%clk 0:03:01.1]} 7... exd4 {[%clk 0:02:54.2]} 8. Nxd4 {[%clk 0:03:00.8]}
8... Re8 {[%clk 0:02:54.5]} 9. O-O {[%clk 0:03:01.1]} 9... Nbd7 {[%clk
0:02:54.6]} 10. h3 {[%clk 0:03:01]} 10... c6 {[%clk 0:02:54.9]} 11. Be3 {[%clk
0:02:58.5]} 11... Nc5 {[%clk 0:02:51.8]} 12. Qc2 {[%clk 0:02:54]} 12... a5
{[%clk 0:02:51.7]} 13. b3 {[%clk 0:02:53.2]} 13... Nfd7 {[%clk 0:02:41]} 14.
Rad1 {[%clk 0:02:42.4]} 14... Qb6 {[%clk 0:02:40.2]} 15. Nde2 {[%clk 0:02:32.6]}
15... Qc7 {[%clk 0:02:38.7]} 16. a3 {[%clk 0:02:27.6]} 16... Ne5 {[%clk
0:02:31.9]} 17. b4 {[%clk 0:02:24.2]} 17... axb4 {[%clk 0:02:25.3]} 18. axb4
{[%clk 0:02:25.1]} 18... Nxc4 {[%clk 0:02:15.8]} 19. bxc5 {[%clk 0:02:22.7]}
19... Nxe3 {[%clk 0:02:15.7]} 20. fxe3 {[%clk 0:02:23]} 20... dxc5 {[%clk
0:02:15.8]} 21. Na4 {[%clk 0:01:59.7]} 21... b6 {[%clk 0:02:12.2]} 22. Rb1
{[%clk 0:01:59.8]} 22... Ra6 {[%clk 0:02:06.1]} 23. Nf4 {[%clk 0:01:47.1]} 23...
Qa7 {[%clk 0:02:02]} 24. Nc3 {[%clk 0:01:30.2]} 24... Ra3 {[%clk 0:01:48]} 25.
Nce2 {[%clk 0:01:30.1]} 25... Rxe3 {[%clk 0:01:40]} 26. Kh2 {[%clk 0:01:28.6]}
26... b5 {[%clk 0:01:37.7]} 27. Qd2 {[%clk 0:01:23.3]} 27... c4 {[%clk
0:01:34.3]} 28. e5 {[%clk 0:01:11.8]} 28... Ra3 {[%clk 0:01:30.3]} 29. Bxc6
{[%clk 0:01:08.7]} 29... Rf8 {[%clk 0:01:25.8]} 30. Rxb5 {[%clk 0:01:01.5]}
30... Qc7 {[%clk 0:01:06.1]} 31. Bg2 {[%clk 0:00:54.8]} 31... c3 {[%clk
0:00:59.8]} 32. Qd6 {[%clk 0:00:50.4]} 32... Qxd6 {[%clk 0:00:51.7]} 33. exd6
{[%clk 0:00:51.3]} 33... Ra2 {[%clk 0:00:48.2]} 34. Rc1 {[%clk 0:00:34.7]} 34...
Ba6 {[%clk 0:00:46.9]} 35. Rd5 {[%clk 0:00:28.1]} 35... Bxe2 {[%clk 0:00:45.4]}
36. Nxe2 {[%clk 0:00:18.9]} 36... Rxe2 {[%clk 0:00:44.8]} 37. d7 {[%clk
0:00:19.4]} 37... Rd8 {[%clk 0:00:36.4]} 38. Kg1 {[%clk 0:00:19.1]} 38... Kf8
{[%clk 0:00:32.6]} 39. Bf3 {[%clk 0:00:18.2]} 39... Rd2 {[%clk 0:00:29.9]} 40.
Rxd2 {[%clk 0:00:14.1]} 40... cxd2 {[%clk 0:00:29.4]} 41. Rd1 {[%clk 0:00:15]}
41... Rxd7 {[%clk 0:00:29]} 42. Kf2 {[%clk 0:00:15.9]} 42... Bc3 {[%clk
0:00:27.6]} 43. Bg4 {[%clk 0:00:15.9]} 43... f5 {[%clk 0:00:25.4]} 44. Bf3
{[%clk 0:00:16.4]} 44... Re7 {[%clk 0:00:25]} 45. Be2 {[%clk 0:00:16.3]} 45...
Kg7 {[%clk 0:00:22.7]} 46. Bf3 {[%clk 0:00:16.6]} 46... Re1 {[%clk 0:00:21.4]}
47. g4 {[%clk 0:00:15.4]} 47... Kf6 {[%clk 0:00:21.1]} 48. gxf5 {[%clk
0:00:15.5]} 48... Kxf5 {[%clk 0:00:20.6]} 49. Bg4+ {[%clk 0:00:15.3]} 49... Kf4
{[%clk 0:00:20.5]} 50. Bf3 {[%clk 0:00:14.6]} 50... h5 {[%clk 0:00:19.6]} 51.
Be2 {[%clk 0:00:13.6]} 51... Bd4+ {[%clk 0:00:19.3]} 52. Kg2 {[%clk 0:00:07.9]}
52... Rxe2+ {[%clk 0:00:19.2]} 53. Kf1 {[%clk 0:00:08.4]} 53... Ke3 {[%clk
0:00:18.6]} 54. h4 {[%clk 0:00:07]} 54... Bc3 {[%clk 0:00:17.2]} 55. Rxd2 {[%clk
0:00:04.9]} 55... Rxd2 {[%clk 0:00:17]} 56. Ke1 {[%clk 0:00:05.2]} 56... Rd4+
{[%clk 0:00:16.2]} 0-1

[Event "Early-Titled-Tuesday-Blitz-January-23-2024"]
[Site "Chess.com"]
[Date "2024.01.23"]
[Round "9"]
[White "vova-79"]
[Black "Juicy_Fork"]
[Result "1-0"]
[WhiteElo "2556"]
[BlackElo "2429"]
[TimeControl "180+1"]
[EndTime "9:46:22 PST"]
[Termination "vova-79 won on time"]

1. d4 {[%clk 0:03:00.9]} 1... Nf6 {[%clk 0:03:00.1]} 2. c4 {[%clk 0:02:59.8]}
2... g6 {[%clk 0:02:58.9]} 3. Nc3 {[%clk 0:02:59.4]} 3... Bg7 {[%clk 0:02:57.5]}
4. Nf3 {[%clk 0:02:59.9]} 4... O-O {[%clk 0:02:57.5]} 5. g3 {[%clk 0:03:00.2]}
5... d6 {[%clk 0:02:56.4]} 6. Bg2 {[%clk 0:02:59.8]} 6... c5 {[%clk 0:02:55.8]}
7. dxc5 {[%clk 0:02:47.5]} 7... dxc5 {[%clk 0:02:55.8]} 8. Qxd8 {[%clk
0:02:44.8]} 8... Rxd8 {[%clk 0:02:56.7]} 9. Be3 {[%clk 0:02:45]} 9... Na6 {[%clk
0:02:45.6]} 10. Ne5 {[%clk 0:02:44]} 10... Ne8 {[%clk 0:02:35.1]} 11. Nd3 {[%clk
0:02:37.3]} 11... Nb4 {[%clk 0:02:31.6]} 12. O-O-O {[%clk 0:02:17.6]} 12... Bf5
{[%clk 0:02:01.3]} 13. Nxc5 {[%clk 0:01:46.9]} 13... Rac8 {[%clk 0:01:51.8]} 14.
Rxd8 {[%clk 0:01:32.1]} 14... Rxd8 {[%clk 0:01:47.3]} 15. Nxb7 {[%clk
0:01:24.4]} 15... Rb8 {[%clk 0:01:34]} 16. a3 {[%clk 0:01:19.8]} 16... Na6
{[%clk 0:01:18.5]} 17. Bxa7 {[%clk 0:01:16.2]} 17... Rc8 {[%clk 0:01:17.1]} 18.
c5 {[%clk 0:01:15.3]} 18... Nec7 {[%clk 0:01:09.3]} 19. Rd1 {[%clk 0:01:00.7]}
19... Bxc3 {[%clk 0:01:03.6]} 20. bxc3 {[%clk 0:00:58.8]} 20... Nb5 {[%clk
0:01:03.6]} 21. Bb6 {[%clk 0:00:53.9]} 21... Nxc3 {[%clk 0:01:01.8]} 22. Rd8+
{[%clk 0:00:42.8]} 22... Rxd8 {[%clk 0:00:56.2]} 23. Bxd8 {[%clk 0:00:43.4]}
23... Nxe2+ {[%clk 0:00:40.5]} 24. Kd2 {[%clk 0:00:42.9]} 24... Nd4 {[%clk
0:00:40]} 25. Bxe7 {[%clk 0:00:42.2]} 25... Bd7 {[%clk 0:00:35]} 26. Na5 {[%clk
0:00:32]} 26... Nb8 {[%clk 0:00:24.4]} 27. Bf6 {[%clk 0:00:25]} 27... Ndc6
{[%clk 0:00:20.1]} 28. Nxc6 {[%clk 0:00:24.4]} 28... Nxc6 {[%clk 0:00:19.6]} 29.
Bd5 {[%clk 0:00:22.2]} 29... Kf8 {[%clk 0:00:18.4]} 30. Kc3 {[%clk 0:00:21]}
30... Ne7 {[%clk 0:00:15]} 31. Bxe7+ {[%clk 0:00:19.8]} 31... Kxe7 {[%clk
0:00:15.9]} 32. Kd4 {[%clk 0:00:17.1]} 32... Ba4 {[%clk 0:00:12.6]} 33. f4
{[%clk 0:00:14]} 33... f6 {[%clk 0:00:11.1]} 34. Bg8 {[%clk 0:00:11.4]} 34... h6
{[%clk 0:00:08.6]} 35. Kc4 {[%clk 0:00:10.7]} 35... Kd7 {[%clk 0:00:04.8]} 36.
Bd5 {[%clk 0:00:10.7]} 36... Bd1 {[%clk 0:00:03.2]} 37. Kb4 {[%clk 0:00:10.2]}
37... g5 {[%clk 0:00:03.5]} 38. a4 {[%clk 0:00:10.1]} 38... gxf4 {[%clk
0:00:03.1]} 39. gxf4 {[%clk 0:00:09.6]} 39... Kc7 {[%clk 0:00:03.6]} 40. a5
{[%clk 0:00:09.3]} 40... Be2 {[%clk 0:00:03.9]} 41. Bc4 {[%clk 0:00:09.1]} 41...
Bf3 {[%clk 0:00:03.4]} 42. Bb5 {[%clk 0:00:09.6]} 42... Bd5 {[%clk 0:00:01.8]}
43. Kc3 {[%clk 0:00:10]} 43... Be4 {[%clk 0:00:01.5]} 44. Kd4 {[%clk 0:00:10.6]}
44... f5 {[%clk 0:00:02.1]} 45. Ke5 {[%clk 0:00:10.6]} 45... h5 {[%clk
0:00:02.6]} 46. h4 {[%clk 0:00:10.5]} 46... Kb8 {[%clk 0:00:01.5]} 47. Kf6
{[%clk 0:00:10.6]} 47... Ka7 {[%clk 0:00:01.1]} 48. Kg5 {[%clk 0:00:10.4]} 48...
Bf3 {[%clk 0:00:01]} 49. Kxf5 {[%clk 0:00:10.5]} 49... Bg4+ {[%clk 0:00:01.9]}
50. Kg5 {[%clk 0:00:10.9]} 50... Kb7 {[%clk 0:00:02.3]} 51. f5 {[%clk
0:00:11.4]} 51... Kc7 {[%clk 0:00:03.2]} 52. f6 {[%clk 0:00:11.7]} 52... Kd8
{[%clk 0:00:03.3]} 53. Kg6 {[%clk 0:00:12.1]} 53... Bd1 {[%clk 0:00:01.6]} 54.
f7 {[%clk 0:00:10.3]} 1-0

[Event "Early-Titled-Tuesday-Blitz-January-23-2024"]
[Site "Chess.com"]
[Date "2024.01.23"]
[Round "9"]
[White "frederiksvane"]
[Black "Jospem"]
[Result "0-1"]
[WhiteElo "2953"]
[BlackElo "3107"]
[TimeControl "180+1"]
[EndTime "9:46:24 PST"]
[Termination "Jospem won by resignation"]

1. e4 {[%clk 0:03:00.9]} 1... e5 {[%clk 0:02:56.3]} 2. Nf3 {[%clk 0:03:01]} 2...
Nf6 {[%clk 0:02:56.2]} 3. Nxe5 {[%clk 0:03:00]} 3... d6 {[%clk 0:02:56.3]} 4.
Nf3 {[%clk 0:02:59.8]} 4... Nxe4 {[%clk 0:02:56.9]} 5. d3 {[%clk 0:03:00.4]}
5... Nf6 {[%clk 0:02:57.1]} 6. d4 {[%clk 0:03:01]} 6... Be7 {[%clk 0:02:57.7]}
7. Bd3 {[%clk 0:02:59.2]} 7... O-O {[%clk 0:02:58]} 8. O-O {[%clk 0:02:59.7]}
8... Nbd7 {[%clk 0:02:58.5]} 9. c4 {[%clk 0:02:57.1]} 9... d5 {[%clk 0:02:52.8]}
10. Nc3 {[%clk 0:02:46.5]} 10... dxc4 {[%clk 0:02:52.8]} 11. Bxc4 {[%clk
0:02:47.4]} 11... Nb6 {[%clk 0:02:53.5]} 12. Bb3 {[%clk 0:02:47.6]} 12... c6
{[%clk 0:02:54.3]} 13. Ne5 {[%clk 0:02:44]} 13... Nbd5 {[%clk 0:02:54]} 14. Bg5
{[%clk 0:02:37.7]} 14... Be6 {[%clk 0:02:50.4]} 15. Qf3 {[%clk 0:02:36]} 15...
Nc7 {[%clk 0:02:40]} 16. Rad1 {[%clk 0:02:09.8]} 16... Bxb3 {[%clk 0:02:36.9]}
17. axb3 {[%clk 0:02:10.7]} 17... Nfd5 {[%clk 0:02:35.1]} 18. Bc1 {[%clk
0:02:03.3]} 18... f6 {[%clk 0:02:22.2]} 19. Nd3 {[%clk 0:01:57.7]} 19... Qd7
{[%clk 0:02:21.6]} 20. Nc5 {[%clk 0:01:55]} 20... Bxc5 {[%clk 0:02:11.5]} 21.
dxc5 {[%clk 0:01:55.9]} 21... Qf7 {[%clk 0:02:08.2]} 22. Ne4 {[%clk 0:01:54.7]}
22... Nb5 {[%clk 0:02:06.8]} 23. Rfe1 {[%clk 0:01:49.3]} 23... Rad8 {[%clk
0:02:05.5]} 24. h3 {[%clk 0:01:44.7]} 24... Rfe8 {[%clk 0:02:02.7]} 25. Bf4
{[%clk 0:01:43.1]} 25... Re6 {[%clk 0:01:52.9]} 26. Nd6 {[%clk 0:01:26.8]} 26...
Nxd6 {[%clk 0:01:40.6]} 27. Bxd6 {[%clk 0:01:27.1]} 27... Rde8 {[%clk
0:01:36.2]} 28. Rxe6 {[%clk 0:01:24.6]} 28... Qxe6 {[%clk 0:01:37.1]} 29. Ra1
{[%clk 0:01:21.4]} 29... a6 {[%clk 0:01:36.2]} 30. Ra4 {[%clk 0:01:05.9]} 30...
Qe2 {[%clk 0:01:29.1]} 31. Qf5 {[%clk 0:00:51]} 31... Qe6 {[%clk 0:01:08.9]} 32.
Qf3 {[%clk 0:00:44.1]} 32... g6 {[%clk 0:01:07.6]} 33. Kh2 {[%clk 0:00:04.2]}
33... Qe2 {[%clk 0:01:05.5]} 34. Qg3 {[%clk 0:00:04.1]} 34... Qd1 {[%clk
0:00:58.8]} 35. h4 {[%clk 0:00:02.8]} 35... Re1 {[%clk 0:00:56.1]} 36. Qf3
{[%clk 0:00:02.9]} 36... Qxf3 {[%clk 0:00:53.8]} 37. gxf3 {[%clk 0:00:03.8]}
37... Kf7 {[%clk 0:00:48.5]} 38. Re4 {[%clk 0:00:04.3]} 38... Rd1 {[%clk
0:00:46.5]} 39. h5 {[%clk 0:00:04.3]} 39... g5 {[%clk 0:00:42.7]} 40. Kg3 {[%clk
0:00:04.3]} 40... Rd2 {[%clk 0:00:40.2]} 41. f4 {[%clk 0:00:04.2]} 41... gxf4+
{[%clk 0:00:37.4]} 42. Kg4 {[%clk 0:00:03.7]} 42... Rxf2 {[%clk 0:00:33.2]} 43.
h6 {[%clk 0:00:04.3]} 43... Rg2+ {[%clk 0:00:27.3]} 44. Kf3 {[%clk 0:00:03.4]}
44... Rg3+ {[%clk 0:00:26.9]} 45. Kf2 {[%clk 0:00:04]} 45... Rxb3 {[%clk
0:00:25.7]} 46. Bxf4 {[%clk 0:00:04.4]} 46... Rxb2+ {[%clk 0:00:21.3]} 47. Kf3
{[%clk 0:00:04.9]} 47... Rb4 {[%clk 0:00:21.7]} 48. Rxb4 {[%clk 0:00:05.1]}
48... Nxb4 {[%clk 0:00:22.6]} 49. Bd2 {[%clk 0:00:05.8]} 49... Nd5 {[%clk
0:00:22.9]} 50. Ke4 {[%clk 0:00:06.2]} 50... Kg6 {[%clk 0:00:21.9]} 51. Bc1
{[%clk 0:00:05.1]} 51... a5 {[%clk 0:00:21.6]} 52. Kf3 {[%clk 0:00:05.3]} 52...
a4 {[%clk 0:00:21.8]} 53. Kg4 {[%clk 0:00:05.9]} 53... f5+ {[%clk 0:00:20.3]}
54. Kf3 {[%clk 0:00:06.1]} 54... a3 {[%clk 0:00:19.8]} 55. Bxa3 {[%clk
0:00:06.3]} 55... Kxh6 {[%clk 0:00:20]} 56. Bc1+ {[%clk 0:00:06.9]} 56... Kg6
{[%clk 0:00:20.5]} 57. Bd2 {[%clk 0:00:07.5]} 57... Kf6 {[%clk 0:00:21.1]} 58.
Kg3 {[%clk 0:00:05.4]} 58... Ke5 {[%clk 0:00:21.3]} 59. Kh4 {[%clk 0:00:06.1]}
59... Ke4 {[%clk 0:00:21.1]} 60. Kg5 {[%clk 0:00:06.3]} 60... f4 {[%clk
0:00:21.6]} 61. Be1 {[%clk 0:00:06.5]} 61... f3 {[%clk 0:00:21.7]} 62. Bf2
{[%clk 0:00:06.9]} 62... Nf4 {[%clk 0:00:21.8]} 63. Kg4 {[%clk 0:00:06.5]} 63...
Nd3 {[%clk 0:00:22]} 64. Bh4 {[%clk 0:00:05.8]} 64... f2 {[%clk 0:00:22.2]} 65.
Bxf2 {[%clk 0:00:05]} 65... Nxf2+ {[%clk 0:00:23.1]} 66. Kh4 {[%clk 0:00:05.4]}
66... Nd3 {[%clk 0:00:23.8]} 67. Kg5 {[%clk 0:00:06.3]} 67... Nxc5 {[%clk
0:00:24.6]} 0-1

[Event "Early-Titled-Tuesday-Blitz-January-23-2024"]
[Site "Chess.com"]
[Date "2024.01.23"]
[Round "9"]
[White "Revan_2002"]
[Black "yaguigor"]
[Result "0-1"]
[WhiteElo "2404"]
[BlackElo "2642"]
[TimeControl "180+1"]
[EndTime "9:46:26 PST"]
[Termination "yaguigor won by resignation"]

1. Nf3 {[%clk 0:02:58.4]} 1... d5 {[%clk 0:02:59.2]} 2. g3 {[%clk 0:02:58.3]}
2... Bg4 {[%clk 0:02:57.8]} 3. Bg2 {[%clk 0:02:58.6]} 3... Nd7 {[%clk
0:02:56.9]} 4. O-O {[%clk 0:02:58.6]} 4... c6 {[%clk 0:02:56.3]} 5. c4 {[%clk
0:02:53.6]} 5... e6 {[%clk 0:02:55.6]} 6. cxd5 {[%clk 0:02:52.4]} 6... exd5
{[%clk 0:02:55.2]} 7. d3 {[%clk 0:02:53]} 7... Ngf6 {[%clk 0:02:54.5]} 8. Nc3
{[%clk 0:02:53.6]} 8... Bc5 {[%clk 0:02:53.6]} 9. e4 {[%clk 0:02:42.5]} 9...
dxe4 {[%clk 0:02:47.5]} 10. dxe4 {[%clk 0:02:41.9]} 10... O-O {[%clk 0:02:43.6]}
11. Qc2 {[%clk 0:02:33.9]} 11... Qe7 {[%clk 0:02:35.6]} 12. Bf4 {[%clk
0:02:25.7]} 12... Bxf3 {[%clk 0:02:17.1]} 13. Bxf3 {[%clk 0:02:26.6]} 13... Ne5
{[%clk 0:02:17.1]} 14. Be2 {[%clk 0:02:24.4]} 14... Rad8 {[%clk 0:02:10.4]} 15.
Kg2 {[%clk 0:02:20.6]} 15... Bd4 {[%clk 0:02:07.5]} 16. f3 {[%clk 0:02:17]}
16... Qc5 {[%clk 0:01:59]} 17. Rac1 {[%clk 0:02:08]} 17... Be3 {[%clk
0:01:48.9]} 18. Bxe3 {[%clk 0:01:56]} 18... Qxe3 {[%clk 0:01:48.1]} 19. Rcd1
{[%clk 0:01:56.7]} 19... h5 {[%clk 0:01:36.5]} 20. Rxd8 {[%clk 0:01:55]} 20...
Rxd8 {[%clk 0:01:35.6]} 21. Rd1 {[%clk 0:01:55.9]} 21... Rxd1 {[%clk 0:01:11]}
22. Nxd1 {[%clk 0:01:56.8]} 22... Qb6 {[%clk 0:01:09]} 23. Nf2 {[%clk
0:01:52.1]} 23... Qd4 {[%clk 0:00:59.8]} 24. h4 {[%clk 0:01:37.5]} 24... c5
{[%clk 0:00:57.2]} 25. b3 {[%clk 0:01:18.7]} 25... b6 {[%clk 0:00:56.1]} 26. Nh3
{[%clk 0:01:09.1]} 26... g6 {[%clk 0:00:50.5]} 27. Nf4 {[%clk 0:01:01.5]} 27...
Kg7 {[%clk 0:00:49]} 28. Nh3 {[%clk 0:00:54.2]} 28... Qe3 {[%clk 0:00:46.5]} 29.
Ng5 {[%clk 0:00:52]} 29... Ne8 {[%clk 0:00:31.9]} 30. f4 {[%clk 0:00:45.6]}
30... Nc6 {[%clk 0:00:24.1]} 31. Bc4 {[%clk 0:00:35.5]} 31... Nd4 {[%clk
0:00:23]} 32. Qb2 {[%clk 0:00:35.7]} 32... Nd6 {[%clk 0:00:21.7]} 33. Bd5 {[%clk
0:00:36.4]} 33... f6 {[%clk 0:00:20]} 34. e5 {[%clk 0:00:23.6]} 34... fxe5
{[%clk 0:00:17.4]} 35. b4 {[%clk 0:00:09.8]} 35... exf4 {[%clk 0:00:15.2]} 36.
gxf4 {[%clk 0:00:10.7]} 36... Nf5 {[%clk 0:00:13.1]} 37. bxc5 {[%clk 0:00:09.5]}
37... Nxh4+ {[%clk 0:00:11.9]} 38. Kh2 {[%clk 0:00:08.3]} 38... Kh6 {[%clk
0:00:10.4]} 39. Nh3 {[%clk 0:00:05]} 39... Nhf3+ {[%clk 0:00:09.1]} 40. Kg3
{[%clk 0:00:03.5]} 40... Ne1+ {[%clk 0:00:08.2]} 41. Kh2 {[%clk 0:00:03.3]}
41... h4 {[%clk 0:00:06.2]} 42. cxb6 {[%clk 0:00:02.1]} 42... Qg3+ {[%clk
0:00:05.6]} 43. Kh1 {[%clk 0:00:02]} 43... Qxh3+ {[%clk 0:00:06.3]} 44. Kg1
{[%clk 0:00:02.6]} 44... Nef3+ {[%clk 0:00:05.8]} 45. Kf2 {[%clk 0:00:02.8]}
45... Qh2+ {[%clk 0:00:05.6]} 46. Ke3 {[%clk 0:00:02.9]} 46... Qxb2 {[%clk
0:00:06.4]} 47. bxa7 {[%clk 0:00:03.8]} 47... Qc3+ {[%clk 0:00:06.1]} 48. Ke4
{[%clk 0:00:03.8]} 48... Nd2+ {[%clk 0:00:04.5]} 49. Ke5 {[%clk 0:00:03.6]}
49... Nb5+ {[%clk 0:00:05.1]} 50. Ke6 {[%clk 0:00:04.1]} 50... Nxa7 {[%clk
0:00:06]} 0-1